[Event "*** Titled Tuesday Blitz"]
[Site "Chess.com"]
[Date "2020.12.29"]
[Round "3"]
[White "BabyBoss31"]
[Black "theturtlemoves"]
[Result "1/2-1/2"]
[WhiteElo "2206"]
[BlackElo "2359"]
[TimeControl "180+1"]
[EndTime "10:30:17 PST"]
[Termination "Game drawn by repetition"]

1. d4 {[%clk 0:02:57.1]} 1... d5 {[%clk 0:02:59.6]} 2. c4 {[%clk 0:02:56.1]}
2... e6 {[%clk 0:03:00.1]} 3. Nf3 {[%clk 0:02:49.2]} 3... a6 {[%clk 0:03:00.3]}
4. cxd5 {[%clk 0:02:45.5]} 4... exd5 {[%clk 0:03:01.2]} 5. Nc3 {[%clk
0:02:44.7]} 5... Nf6 {[%clk 0:03:01.7]} 6. Bg5 {[%clk 0:02:40.9]} 6... Be6
{[%clk 0:03:02]} 7. e3 {[%clk 0:02:37.7]} 7... Nbd7 {[%clk 0:03:02]} 8. Bd3
{[%clk 0:02:36.8]} 8... c6 {[%clk 0:03:02.2]} 9. Qc2 {[%clk 0:02:34.5]} 9... Bd6
{[%clk 0:02:57.1]} 10. O-O {[%clk 0:02:28.5]} 10... Qc7 {[%clk 0:02:45.9]} 11.
Bf5 {[%clk 0:02:25.3]} 11... Bxf5 {[%clk 0:02:44.8]} 12. Qxf5 {[%clk 0:02:26.2]}
12... O-O {[%clk 0:02:40.9]} 13. Rac1 {[%clk 0:02:11.8]} 13... Rae8 {[%clk
0:02:37.5]} 14. Bh4 {[%clk 0:01:47]} 14... Ne4 {[%clk 0:02:29.3]} 15. Nxd5
{[%clk 0:01:37.6]} 15... Qb8 {[%clk 0:02:25.1]} 16. Qxd7 {[%clk 0:01:22.2]}
16... cxd5 {[%clk 0:02:20.2]} 17. Bg3 {[%clk 0:01:14.6]} 17... Nxg3 {[%clk
0:02:01.8]} 18. hxg3 {[%clk 0:01:15.5]} 18... Rd8 {[%clk 0:01:58.8]} 19. Qf5
{[%clk 0:01:12.7]} 19... g6 {[%clk 0:01:58.1]} 20. Qd3 {[%clk 0:01:04.6]} 20...
Rfe8 {[%clk 0:01:57]} 21. Rc2 {[%clk 0:01:03.6]} 21... Kg7 {[%clk 0:01:54.1]}
22. Rfc1 {[%clk 0:01:02.8]} 22... h5 {[%clk 0:01:47.1]} 23. Nd2 {[%clk
0:00:45.1]} 23... Re6 {[%clk 0:01:26.3]} 24. Nf3 {[%clk 0:00:31.6]} 24... Rde8
{[%clk 0:01:21.8]} 25. Re2 {[%clk 0:00:30.5]} 25... Bxg3 {[%clk 0:01:11.4]} 26.
fxg3 {[%clk 0:00:30]} 26... Qxg3 {[%clk 0:01:12.2]} 27. Rce1 {[%clk 0:00:27.3]}
27... h4 {[%clk 0:01:10.9]} 28. Ne5 {[%clk 0:00:19.6]} 28... h3 {[%clk
0:01:08.1]} 29. e4 {[%clk 0:00:19.1]} 29... Qxd3 {[%clk 0:00:59.3]} 30. Nxd3
{[%clk 0:00:18.5]} 30... Rxe4 {[%clk 0:00:55.5]} 31. Rxe4 {[%clk 0:00:18.4]}
31... dxe4 {[%clk 0:00:54.9]} 32. Nc5 {[%clk 0:00:18.3]} 32... b6 {[%clk
0:00:49.6]} 33. Rxe4 {[%clk 0:00:13.8]} 33... h2+ {[%clk 0:00:42.1]} 34. Kxh2
{[%clk 0:00:13.6]} 34... Rh8+ {[%clk 0:00:41.6]} 35. Kg3 {[%clk 0:00:13.6]}
35... bxc5 {[%clk 0:00:41.9]} 36. dxc5 {[%clk 0:00:14.5]} 36... f5 {[%clk
0:00:41.1]} 37. Re7+ {[%clk 0:00:14.2]} 37... Kf6 {[%clk 0:00:41]} 38. Ra7
{[%clk 0:00:14.3]} 38... Rb8 {[%clk 0:00:36.7]} 39. Rxa6+ {[%clk 0:00:14.4]}
39... Ke5 {[%clk 0:00:34.8]} 40. Rb6 {[%clk 0:00:14.2]} 40... Rc8 {[%clk
0:00:32.1]} 41. b4 {[%clk 0:00:12.5]} 41... g5 {[%clk 0:00:32.2]} 42. a4 {[%clk
0:00:12.5]} 42... Rd8 {[%clk 0:00:31.8]} 43. a5 {[%clk 0:00:11.9]} 43... Rd3+
{[%clk 0:00:31.8]} 44. Kf2 {[%clk 0:00:11.9]} 44... f4 {[%clk 0:00:30.4]} 45. a6
{[%clk 0:00:12.3]} 45... Ra3 {[%clk 0:00:28.4]} 46. b5 {[%clk 0:00:11.8]} 46...
g4 {[%clk 0:00:28.3]} 47. Rb8 {[%clk 0:00:10.4]} 47... Ra2+ {[%clk 0:00:24.2]}
48. Ke1 {[%clk 0:00:09.9]} 48... g3 {[%clk 0:00:15.7]} 49. a7 {[%clk 0:00:09.5]}
49... Rxa7 {[%clk 0:00:14.7]} 50. Re8+ {[%clk 0:00:08.3]} 50... Kd4 {[%clk
0:00:14.2]} 51. c6 {[%clk 0:00:07.8]} 51... f3 {[%clk 0:00:11.4]} 52. gxf3
{[%clk 0:00:07.2]} 52... Ra1+ {[%clk 0:00:11]} 53. Ke2 {[%clk 0:00:07.1]} 53...
g2 {[%clk 0:00:09.3]} 54. Rg8 {[%clk 0:00:07.3]} 54... g1=Q {[%clk 0:00:08.2]}
55. Rxg1 {[%clk 0:00:07.3]} 55... Rxg1 {[%clk 0:00:09]} 56. c7 {[%clk
0:00:07.4]} 56... Rg2+ {[%clk 0:00:06.7]} 57. Kf1 {[%clk 0:00:07.1]} 57... Rc2
{[%clk 0:00:05.8]} 58. b6 {[%clk 0:00:07.1]} 58... Ke3 {[%clk 0:00:05]} 59. b7
{[%clk 0:00:06.9]} 59... Rc1+ {[%clk 0:00:04.9]} 60. Kg2 {[%clk 0:00:07.1]}
60... Rc2+ {[%clk 0:00:04.4]} 61. Kg3 {[%clk 0:00:07.2]} 61... Rxc7 {[%clk
0:00:03.6]} 62. b8=Q {[%clk 0:00:07.5]} 62... Rg7+ {[%clk 0:00:04.4]} 63. Kh4
{[%clk 0:00:06.8]} 63... Rh7+ {[%clk 0:00:04.8]} 64. Kg4 {[%clk 0:00:06.8]}
64... Rg7+ {[%clk 0:00:05]} 65. Kh5 {[%clk 0:00:07.4]} 65... Rg2 {[%clk
0:00:03.9]} 66. Qb3+ {[%clk 0:00:06.6]} 66... Kf4 {[%clk 0:00:03.3]} 67. Qc4+
{[%clk 0:00:06.1]} 67... Kxf3 {[%clk 0:00:03.4]} 68. Qd5+ {[%clk 0:00:06.7]}
68... Kf2 {[%clk 0:00:03.4]} 69. Qe4 {[%clk 0:00:06.5]} 69... Kg1 {[%clk
0:00:03.6]} 70. Qf3 {[%clk 0:00:06.1]} 70... Rh2+ {[%clk 0:00:03.4]} 71. Kg4
{[%clk 0:00:05.3]} 71... Rg2+ {[%clk 0:00:03.9]} 72. Kh5 {[%clk 0:00:03.6]}
72... Rh2+ {[%clk 0:00:04.1]} 73. Kg6 {[%clk 0:00:04]} 73... Rg2+ {[%clk
0:00:04.5]} 74. Kh6 {[%clk 0:00:04.6]} 74... Rh2+ {[%clk 0:00:05]} 75. Kg7
{[%clk 0:00:05.1]} 75... Rg2+ {[%clk 0:00:05.4]} 76. Kh7 {[%clk 0:00:05.3]}
76... Rh2+ {[%clk 0:00:06]} 77. Kg6 {[%clk 0:00:05.8]} 77... Rg2+ {[%clk
0:00:06.5]} 78. Kh5 {[%clk 0:00:06.2]} 1/2-1/2

[Event "*** Titled Tuesday Blitz"]
[Site "Chess.com"]
[Date "2020.12.29"]
[Round "3"]
[White "Cambek64"]
[Black "MumLookatMeNow"]
[Result "0-1"]
[WhiteElo "2298"]
[BlackElo "2519"]
[TimeControl "180+1"]
[EndTime "10:30:27 PST"]
[Termination "MumLookatMeNow won on time"]

1. e4 {[%clk 0:03:00.1]} 1... d5 {[%clk 0:02:59.5]} 2. d3 {[%clk 0:02:59]} 2...
Nf6 {[%clk 0:02:49.3]} 3. Nc3 {[%clk 0:02:53.7]} 3... c5 {[%clk 0:02:45.3]} 4.
exd5 {[%clk 0:02:40.2]} 4... Nxd5 {[%clk 0:02:42.8]} 5. Nf3 {[%clk 0:02:34.7]}
5... Nc6 {[%clk 0:02:29.2]} 6. Be2 {[%clk 0:02:32.4]} 6... g6 {[%clk 0:02:18.8]}
7. O-O {[%clk 0:02:30.4]} 7... Bg7 {[%clk 0:02:16.8]} 8. Bd2 {[%clk 0:02:29.3]}
8... O-O {[%clk 0:02:15.1]} 9. Nxd5 {[%clk 0:02:26.9]} 9... Qxd5 {[%clk
0:02:16]} 10. Bc3 {[%clk 0:02:26.6]} 10... e5 {[%clk 0:02:15.9]} 11. Nd2 {[%clk
0:02:22.4]} 11... Be6 {[%clk 0:02:11.9]} 12. Bf3 {[%clk 0:02:21]} 12... Qd7
{[%clk 0:02:11.9]} 13. Ne4 {[%clk 0:02:17.1]} 13... b6 {[%clk 0:02:07.6]} 14.
Ng5 {[%clk 0:02:15.5]} 14... Bd5 {[%clk 0:02:06.1]} 15. Bxd5 {[%clk 0:02:12]}
15... Qxd5 {[%clk 0:02:07]} 16. Qf3 {[%clk 0:02:11.7]} 16... Qxf3 {[%clk
0:02:03.3]} 17. Nxf3 {[%clk 0:02:10.7]} 17... Nd4 {[%clk 0:01:59.8]} 18. Nxd4
{[%clk 0:02:00.4]} 18... cxd4 {[%clk 0:02:00.7]} 19. Bd2 {[%clk 0:01:49.3]}
19... Rac8 {[%clk 0:01:55]} 20. Rac1 {[%clk 0:01:34.3]} 20... Rc6 {[%clk
0:01:47.7]} 21. Rfd1 {[%clk 0:01:33.7]} 21... Rfc8 {[%clk 0:01:39.8]} 22. c4
{[%clk 0:01:33.5]} 22... dxc3 {[%clk 0:01:38.7]} 23. Rxc3 {[%clk 0:01:32.2]}
23... Rxc3 {[%clk 0:01:19.1]} 24. Bxc3 {[%clk 0:01:29.5]} 24... Kf8 {[%clk
0:01:13]} 25. Kf1 {[%clk 0:01:29]} 25... Ke7 {[%clk 0:01:12.6]} 26. Ke2 {[%clk
0:01:28.6]} 26... Ke6 {[%clk 0:01:07]} 27. f3 {[%clk 0:01:14]} 27... b5 {[%clk
0:01:03.1]} 28. Rc1 {[%clk 0:01:07]} 28... Kd5 {[%clk 0:00:59]} 29. Bd2 {[%clk
0:01:03.4]} 29... Rxc1 {[%clk 0:00:57.5]} 30. Bxc1 {[%clk 0:01:03.2]} 30... a5
{[%clk 0:00:57.1]} 31. Bd2 {[%clk 0:01:00.9]} 31... a4 {[%clk 0:00:56.5]} 32.
Bc3 {[%clk 0:00:51.7]} 32... Bf8 {[%clk 0:00:52.2]} 33. b3 {[%clk 0:00:46.6]}
33... f5 {[%clk 0:00:49.3]} 34. bxa4 {[%clk 0:00:40.5]} 34... bxa4 {[%clk
0:00:50.2]} 35. Bb2 {[%clk 0:00:33.3]} 35... Bb4 {[%clk 0:00:47.8]} 36. Kd1
{[%clk 0:00:27.3]} 36... h5 {[%clk 0:00:47]} 37. Kc2 {[%clk 0:00:26.3]} 37... g5
{[%clk 0:00:46.8]} 38. Kd1 {[%clk 0:00:24.4]} 38... g4 {[%clk 0:00:46.5]} 39.
Ke2 {[%clk 0:00:21.3]} 39... Bc5 {[%clk 0:00:42]} 40. Bc3 {[%clk 0:00:20.5]}
40... Bd4 {[%clk 0:00:34.5]} 41. Bb4 {[%clk 0:00:20.3]} 41... Bg1 {[%clk
0:00:31.5]} 42. h3 {[%clk 0:00:18.1]} 42... gxh3 {[%clk 0:00:31.5]} 43. gxh3
{[%clk 0:00:17.7]} 43... Kd4 {[%clk 0:00:29.2]} 44. Ba5 {[%clk 0:00:17.5]} 44...
Bh2 {[%clk 0:00:26.9]} 45. Bb4 {[%clk 0:00:16.6]} 45... Bf4 {[%clk 0:00:25.9]}
46. Ba5 {[%clk 0:00:16.4]} 46... Bc1 {[%clk 0:00:24.9]} 47. Bb4 {[%clk
0:00:15.3]} 47... Bh6 {[%clk 0:00:22.9]} 48. Ba5 {[%clk 0:00:15]} 48... Bg5
{[%clk 0:00:21]} 49. Bb4 {[%clk 0:00:14.3]} 49... Bc1 {[%clk 0:00:20.6]} 50. Ba5
{[%clk 0:00:14.5]} 50... Bb2 {[%clk 0:00:21.1]} 51. Kd2 {[%clk 0:00:13]} 51...
Ba3 {[%clk 0:00:19.7]} 52. Bc3+ {[%clk 0:00:12.2]} 52... Kd5 {[%clk 0:00:19.5]}
53. Ke2 {[%clk 0:00:11.8]} 53... Bc5 {[%clk 0:00:19.8]} 54. Kd2 {[%clk
0:00:10.9]} 54... Bd4 {[%clk 0:00:18.8]} 55. Bb4 {[%clk 0:00:10.1]} 55... Ke6
{[%clk 0:00:18.5]} 56. Ke2 {[%clk 0:00:09.4]} 56... Bb6 {[%clk 0:00:18.1]} 57.
Bc3 {[%clk 0:00:09]} 57... Kd5 {[%clk 0:00:18.2]} 58. Bb4 {[%clk 0:00:09]} 58...
Bd8 {[%clk 0:00:17.7]} 59. Bc3 {[%clk 0:00:07.3]} 59... Bh4 {[%clk 0:00:17.7]}
60. Kd2 {[%clk 0:00:06.8]} 60... Bg5+ {[%clk 0:00:17.5]} 61. Ke2 {[%clk
0:00:07.2]} 61... Be7 {[%clk 0:00:16.3]} 62. Bb2 {[%clk 0:00:07.5]} 62... Bb4
{[%clk 0:00:15.2]} 63. Kd1 {[%clk 0:00:06.7]} 63... e4 {[%clk 0:00:13.5]} 64.
dxe4+ {[%clk 0:00:05.8]} 64... fxe4 {[%clk 0:00:14.4]} 65. fxe4+ {[%clk
0:00:05]} 65... Kxe4 {[%clk 0:00:15.3]} 66. Ke2 {[%clk 0:00:05.4]} 66... Bc5
{[%clk 0:00:14.3]} 67. Bc3 {[%clk 0:00:05]} 67... Bd4 {[%clk 0:00:13.8]} 68. Bd2
{[%clk 0:00:04.4]} 68... Be5 {[%clk 0:00:12.3]} 69. Be3 {[%clk 0:00:03.4]} 69...
Bf6 {[%clk 0:00:11.3]} 70. Bd2 {[%clk 0:00:02.7]} 70... Kd4 {[%clk 0:00:09.9]}
71. Kf3 {[%clk 0:00:02.7]} 71... Kd3 {[%clk 0:00:10]} 72. Ba5 {[%clk 0:00:02.4]}
72... Kc2 {[%clk 0:00:09.4]} 73. Kf4 {[%clk 0:00:01.6]} 73... Kb2 {[%clk
0:00:09.6]} 74. Kf5 {[%clk 0:00:01.5]} 74... Be7 {[%clk 0:00:10]} 0-1

[Event "*** Titled Tuesday Blitz"]
[Site "Chess.com"]
[Date "2020.12.29"]
[Round "3"]
[White "juancruzarias"]
[Black "ChessQueen"]
[Result "1-0"]
[WhiteElo "2538"]
[BlackElo "2743"]
[TimeControl "180+1"]
[EndTime "10:30:32 PST"]
[Termination "juancruzarias won by checkmate"]

1. e4 {[%clk 0:03:00.9]} 1... c6 {[%clk 0:02:59.8]} 2. Nc3 {[%clk 0:03:00.3]}
2... d5 {[%clk 0:02:59.5]} 3. Nf3 {[%clk 0:03:00.8]} 3... dxe4 {[%clk
0:02:59.9]} 4. Nxe4 {[%clk 0:03:01.5]} 4... Nf6 {[%clk 0:03:00.6]} 5. Qe2 {[%clk
0:03:00.7]} 5... Nxe4 {[%clk 0:02:59.6]} 6. Qxe4 {[%clk 0:03:01.6]} 6... Nd7
{[%clk 0:02:58.4]} 7. Bc4 {[%clk 0:02:57.2]} 7... Nf6 {[%clk 0:02:58.4]} 8. Qe2
{[%clk 0:02:57.7]} 8... g6 {[%clk 0:02:45.4]} 9. d4 {[%clk 0:02:52]} 9... Bg7
{[%clk 0:02:45.2]} 10. O-O {[%clk 0:02:51.1]} 10... O-O {[%clk 0:02:44.8]} 11.
h3 {[%clk 0:02:51.2]} 11... Nd5 {[%clk 0:02:42.4]} 12. c3 {[%clk 0:02:47.4]}
12... a5 {[%clk 0:02:40.7]} 13. a4 {[%clk 0:02:44.2]} 13... Bf5 {[%clk 0:02:35]}
14. Bg5 {[%clk 0:02:44.1]} 14... Re8 {[%clk 0:02:34.2]} 15. Rfe1 {[%clk
0:02:43.8]} 15... h6 {[%clk 0:02:32.9]} 16. Bh4 {[%clk 0:02:43.8]} 16... Be6
{[%clk 0:02:06.1]} 17. Bg3 {[%clk 0:02:38.7]} 17... Kh7 {[%clk 0:01:49.6]} 18.
h4 {[%clk 0:02:35.9]} 18... Qc8 {[%clk 0:01:44.7]} 19. h5 {[%clk 0:02:33.7]}
19... Bg4 {[%clk 0:01:43.4]} 20. hxg6+ {[%clk 0:02:33.2]} 20... fxg6 {[%clk
0:01:43.5]} 21. Bd3 {[%clk 0:02:28.5]} 21... Rf8 {[%clk 0:01:42.5]} 22. Qc2
{[%clk 0:02:28.6]} 22... Bf5 {[%clk 0:01:41.2]} 23. Nh4 {[%clk 0:02:25]} 23...
Bxd3 {[%clk 0:01:36.7]} 24. Qxd3 {[%clk 0:02:25.9]} 24... Qg4 {[%clk 0:01:35.4]}
25. Re4 {[%clk 0:02:25.3]} 25... Qh5 {[%clk 0:01:33.9]} 26. Re6 {[%clk
0:02:18.3]} 26... Rf6 {[%clk 0:01:32.5]} 27. Rae1 {[%clk 0:02:16.3]} 27... Rxe6
{[%clk 0:01:30.8]} 28. Rxe6 {[%clk 0:02:16]} 28... Bf6 {[%clk 0:01:31.2]} 29.
Nf3 {[%clk 0:02:09]} 29... Qf5 {[%clk 0:01:31.2]} 30. Qe2 {[%clk 0:01:59.7]}
30... Rf8 {[%clk 0:01:21.4]} 31. c4 {[%clk 0:01:49.4]} 31... Nf4 {[%clk
0:01:19.1]} 32. Bxf4 {[%clk 0:01:45]} 32... Qxf4 {[%clk 0:01:20]} 33. b3 {[%clk
0:01:40.7]} 33... Qf5 {[%clk 0:01:18.4]} 34. Re4 {[%clk 0:01:34.7]} 34... Rf7
{[%clk 0:01:10]} 35. Qe3 {[%clk 0:01:30.9]} 35... Kg7 {[%clk 0:01:01.1]} 36. Qe1
{[%clk 0:01:28.6]} 36... h5 {[%clk 0:00:58.4]} 37. Ne5 {[%clk 0:01:22.7]} 37...
Bxe5 {[%clk 0:00:51.3]} 38. Rxe5 {[%clk 0:01:23.6]} 38... Qf4 {[%clk 0:00:50.8]}
39. Rxe7 {[%clk 0:01:22.1]} 39... Qxd4 {[%clk 0:00:49.8]} 40. Rxf7+ {[%clk
0:01:19.6]} 40... Kxf7 {[%clk 0:00:49.8]} 41. Qxa5 {[%clk 0:01:19.2]} 41... Qf4
{[%clk 0:00:45]} 42. Qc3 {[%clk 0:01:11.3]} 42... Qd6 {[%clk 0:00:37.6]} 43. a5
{[%clk 0:01:07.1]} 43... h4 {[%clk 0:00:34.3]} 44. b4 {[%clk 0:01:05]} 44... g5
{[%clk 0:00:31.4]} 45. b5 {[%clk 0:01:01.5]} 45... Qd1+ {[%clk 0:00:29.8]} 46.
Kh2 {[%clk 0:01:01]} 46... Qd6+ {[%clk 0:00:30.7]} 47. Kg1 {[%clk 0:00:59.9]}
47... Qd1+ {[%clk 0:00:30.7]} 48. Kh2 {[%clk 0:01:00.2]} 48... Qd6+ {[%clk
0:00:31.4]} 49. g3 {[%clk 0:01:00.7]} 49... hxg3+ {[%clk 0:00:31.4]} 50. Qxg3
{[%clk 0:00:57.9]} 50... Qh6+ {[%clk 0:00:28.4]} 51. Kg1 {[%clk 0:00:58.4]}
51... cxb5 {[%clk 0:00:19.3]} 52. Qc7+ {[%clk 0:00:57.5]} 52... Kg8 {[%clk
0:00:19.3]} 53. Qb8+ {[%clk 0:00:56.4]} 53... Kf7 {[%clk 0:00:18.9]} 54. Qxb7+
{[%clk 0:00:56.6]} 54... Kg8 {[%clk 0:00:19.4]} 55. Qxb5 {[%clk 0:00:56]} 55...
Qh4 {[%clk 0:00:17.2]} 56. Qd5+ {[%clk 0:00:56.3]} 56... Kg7 {[%clk 0:00:17]}
57. a6 {[%clk 0:00:54]} 57... Qg4+ {[%clk 0:00:17]} 58. Kf1 {[%clk 0:00:52.5]}
58... Qh3+ {[%clk 0:00:17.4]} 59. Ke2 {[%clk 0:00:49.3]} 59... Qg4+ {[%clk
0:00:17.9]} 60. Kd3 {[%clk 0:00:49.3]} 60... Qd1+ {[%clk 0:00:17.7]} 61. Ke4
{[%clk 0:00:49.2]} 61... Qg4+ {[%clk 0:00:15.3]} 62. Ke5 {[%clk 0:00:48]} 62...
Qf4+ {[%clk 0:00:14.9]} 63. Ke6 {[%clk 0:00:47.8]} 63... Qf6+ {[%clk 0:00:15.5]}
64. Kd7 {[%clk 0:00:48]} 64... Qxa6 {[%clk 0:00:16.2]} 65. Qe5+ {[%clk 0:00:44]}
65... Kf7 {[%clk 0:00:12.9]} 66. Qf5+ {[%clk 0:00:40.8]} 66... Kg7 {[%clk
0:00:13.2]} 67. Qxg5+ {[%clk 0:00:40.8]} 67... Kf7 {[%clk 0:00:13.8]} 68. Qd5+
{[%clk 0:00:37.7]} 68... Kg7 {[%clk 0:00:14.2]} 69. Qe5+ {[%clk 0:00:29.7]}
69... Kf7 {[%clk 0:00:14.2]} 70. Qe8+ {[%clk 0:00:29.7]} 70... Kg7 {[%clk
0:00:12.8]} 71. Qe7+ {[%clk 0:00:29.8]} 71... Kh8 {[%clk 0:00:13.3]} 72. c5
{[%clk 0:00:27.3]} 72... Qb7+ {[%clk 0:00:12.9]} 73. Ke8 {[%clk 0:00:27.2]}
73... Qc6+ {[%clk 0:00:13.2]} 74. Kf7 {[%clk 0:00:26.3]} 74... Qd5+ {[%clk
0:00:11.8]} 75. Kf8 {[%clk 0:00:26.5]} 75... Qf5+ {[%clk 0:00:09.7]} 76. Ke8
{[%clk 0:00:24.9]} 76... Qc8+ {[%clk 0:00:09.8]} 77. Qd8 {[%clk 0:00:20.8]}
77... Qe6+ {[%clk 0:00:09.5]} 78. Kf8 {[%clk 0:00:18.3]} 78... Qf5+ {[%clk
0:00:06.4]} 79. Ke8 {[%clk 0:00:17.3]} 79... Qe6+ {[%clk 0:00:05.7]} 80. Qe7
{[%clk 0:00:17.7]} 80... Qc8+ {[%clk 0:00:06]} 81. Kf7 {[%clk 0:00:18.6]} 81...
Qh3 {[%clk 0:00:04.1]} 82. Qf6+ {[%clk 0:00:17.6]} 82... Kh7 {[%clk 0:00:04.4]}
83. Qg7# {[%clk 0:00:18.5]} 1-0

[Event "*** Titled Tuesday Blitz"]
[Site "Chess.com"]
[Date "2020.12.29"]
[Round "3"]
[White "Hikaru"]
[Black "TheBigBoss04"]
[Result "0-1"]
[WhiteElo "3242"]
[BlackElo "2737"]
[TimeControl "180+1"]
[EndTime "10:30:46 PST"]
[Termination "TheBigBoss04 won by resignation"]

1. Nf3 {[%clk 0:03:00.9]} 1... d5 {[%clk 0:02:59.7]} 2. b3 {[%clk 0:03:00.5]}
2... c5 {[%clk 0:02:59.5]} 3. e3 {[%clk 0:03:00.5]} 3... Nc6 {[%clk 0:02:59.6]}
4. Bb2 {[%clk 0:03:00.8]} 4... Bg4 {[%clk 0:02:59.4]} 5. Bb5 {[%clk 0:02:58.4]}
5... Qb6 {[%clk 0:02:56.6]} 6. a4 {[%clk 0:02:55.4]} 6... a6 {[%clk 0:02:54.8]}
7. a5 {[%clk 0:02:54.8]} 7... Qc7 {[%clk 0:02:55.1]} 8. Bxc6+ {[%clk 0:02:53.8]}
8... Qxc6 {[%clk 0:02:56]} 9. Nc3 {[%clk 0:02:52.6]} 9... e6 {[%clk 0:02:50]}
10. Na4 {[%clk 0:02:50.2]} 10... Nf6 {[%clk 0:02:39.7]} 11. h3 {[%clk
0:02:09.5]} 11... Bh5 {[%clk 0:02:35.5]} 12. Nb6 {[%clk 0:02:09.6]} 12... Rd8
{[%clk 0:02:27.5]} 13. Ne5 {[%clk 0:02:04.5]} 13... Qc7 {[%clk 0:02:10.5]} 14.
g4 {[%clk 0:02:04.4]} 14... Bg6 {[%clk 0:02:10.6]} 15. d3 {[%clk 0:02:04.7]}
15... c4 {[%clk 0:01:40.7]} 16. bxc4 {[%clk 0:02:03.3]} 16... Bb4+ {[%clk
0:01:39]} 17. Kf1 {[%clk 0:02:02.7]} 17... Bxa5 {[%clk 0:01:31.3]} 18. Rxa5
{[%clk 0:02:02.5]} 18... Qxb6 {[%clk 0:01:30.1]} 19. Qa1 {[%clk 0:02:02.5]}
19... O-O {[%clk 0:01:10.2]} 20. Bd4 {[%clk 0:01:56.4]} 20... Qc7 {[%clk
0:01:05.7]} 21. h4 {[%clk 0:01:53.2]} 21... h5 {[%clk 0:00:52.6]} 22. g5 {[%clk
0:01:34.9]} 22... Nh7 {[%clk 0:00:46.7]} 23. cxd5 {[%clk 0:01:30.6]} 23... exd5
{[%clk 0:00:43.7]} 24. Rc5 {[%clk 0:01:25.5]} 24... Qd6 {[%clk 0:00:40.6]} 25.
Qc3 {[%clk 0:01:22.7]} 25... Bf5 {[%clk 0:00:33.1]} 26. Rg1 {[%clk 0:01:22.7]}
26... Rc8 {[%clk 0:00:31.8]} 27. Ke1 {[%clk 0:01:21.8]} 27... b6 {[%clk
0:00:29.9]} 28. Rc6 {[%clk 0:01:16.2]} 28... Rxc6 {[%clk 0:00:27.1]} 29. Qxc6
{[%clk 0:01:17.1]} 29... Qb4+ {[%clk 0:00:22.5]} 30. Ke2 {[%clk 0:01:17.2]}
30... Rc8 {[%clk 0:00:17.9]} 31. Qxd5 {[%clk 0:01:16.4]} 31... Rxc2+ {[%clk
0:00:17.7]} 32. Kf3 {[%clk 0:01:16.9]} 32... Be6 {[%clk 0:00:15]} 33. Qa8+
{[%clk 0:01:16]} 33... Nf8 {[%clk 0:00:15.5]} 34. Kg3 {[%clk 0:01:07.8]} 34...
Qd2 {[%clk 0:00:14.7]} 35. Qf3 {[%clk 0:01:08.4]} 35... Bd5 {[%clk 0:00:09.6]}
36. e4 {[%clk 0:01:04.2]} 36... Be6 {[%clk 0:00:09.6]} 37. Bxb6 {[%clk
0:01:00.2]} 37... Ng6 {[%clk 0:00:08.6]} 38. Nxg6 {[%clk 0:00:57]} 38... fxg6
{[%clk 0:00:09.5]} 39. Rb1 {[%clk 0:00:50.4]} 39... Bg4 {[%clk 0:00:09]} 40. Qe3
{[%clk 0:00:44.3]} 40... Qc3 {[%clk 0:00:09.2]} 41. Bd4 {[%clk 0:00:43.7]} 41...
Qc7+ {[%clk 0:00:08.1]} 42. Qf4 {[%clk 0:00:44]} 42... Qd7 {[%clk 0:00:05.9]}
43. Rb8+ {[%clk 0:00:36.9]} 43... Rc8 {[%clk 0:00:03.9]} 44. Rxc8+ {[%clk
0:00:37.3]} 44... Qxc8 {[%clk 0:00:04.4]} 45. Qe5 {[%clk 0:00:36.9]} 45... Qd7
{[%clk 0:00:04.4]} 46. f3 {[%clk 0:00:37.2]} 46... Be6 {[%clk 0:00:03.4]} 47.
Kf4 {[%clk 0:00:37.8]} 47... Kh7 {[%clk 0:00:02.4]} 48. Ke3 {[%clk 0:00:38.3]}
48... Bg8 {[%clk 0:00:02.9]} 49. Bc3 {[%clk 0:00:37.6]} 49... Qf7 {[%clk
0:00:03.4]} 50. f4 {[%clk 0:00:37.5]} 50... Qd7 {[%clk 0:00:03.8]} 51. Kd2
{[%clk 0:00:36.2]} 51... Qb7 {[%clk 0:00:03.1]} 52. f5 {[%clk 0:00:31.9]} 52...
Qd7 {[%clk 0:00:03.4]} 53. f6 {[%clk 0:00:27.6]} 53... Qf7 {[%clk 0:00:02.8]}
54. Ke3 {[%clk 0:00:22.1]} 54... a5 {[%clk 0:00:02]} 55. Qxa5 {[%clk 0:00:20.3]}
55... Qe6 {[%clk 0:00:01.9]} 56. Qc7 {[%clk 0:00:17.7]} 56... Bf7 {[%clk
0:00:02.3]} 57. fxg7 {[%clk 0:00:16.9]} 57... Qh3+ {[%clk 0:00:02.9]} 58. Kd4
{[%clk 0:00:17.5]} 58... Bg8 {[%clk 0:00:03.4]} 59. Qf4 {[%clk 0:00:16.8]} 59...
Qh1 {[%clk 0:00:02.5]} 60. Ke5 {[%clk 0:00:13.3]} 60... Qd1 {[%clk 0:00:03]} 61.
Qe3 {[%clk 0:00:12.2]} 61... Qb3 {[%clk 0:00:03.1]} 62. Qc5 {[%clk 0:00:10.3]}
62... Qe6+ {[%clk 0:00:03.3]} 63. Kd4 {[%clk 0:00:10.9]} 63... Qd7+ {[%clk
0:00:03.3]} 64. Ke3 {[%clk 0:00:11.6]} 64... Qh3+ {[%clk 0:00:03.4]} 65. Kd2
{[%clk 0:00:12.3]} 65... Qxh4 {[%clk 0:00:03.9]} 66. Qe3 {[%clk 0:00:12.5]}
66... Qh2+ {[%clk 0:00:03.7]} 67. Kc1 {[%clk 0:00:13]} 67... h4 {[%clk
0:00:04.2]} 68. Be5 {[%clk 0:00:13.1]} 68... Qxe5 {[%clk 0:00:03.7]} 69. Kd2
{[%clk 0:00:12.8]} 69... Qg3 {[%clk 0:00:04.1]} 70. Qxg3 {[%clk 0:00:12.4]}
70... hxg3 {[%clk 0:00:05]} 71. Ke3 {[%clk 0:00:13.3]} 71... Kxg7 {[%clk
0:00:05.7]} 72. Kf3 {[%clk 0:00:14]} 72... Be6 {[%clk 0:00:06.5]} 73. Kxg3
{[%clk 0:00:14.5]} 73... Kf7 {[%clk 0:00:07.4]} 74. Kf4 {[%clk 0:00:15.2]} 74...
Ke7 {[%clk 0:00:07.6]} 75. Ke5 {[%clk 0:00:15.9]} 75... Bc8 {[%clk 0:00:08.1]}
76. d4 {[%clk 0:00:16.6]} 76... Bb7 {[%clk 0:00:08.6]} 77. d5 {[%clk 0:00:17.5]}
77... Bc8 {[%clk 0:00:09]} 78. Kd4 {[%clk 0:00:17.2]} 78... Kd6 {[%clk
0:00:09.4]} 79. e5+ {[%clk 0:00:17.5]} 79... Ke7 {[%clk 0:00:10.1]} 80. Kc5
{[%clk 0:00:17]} 80... Bf5 {[%clk 0:00:10.7]} 81. Kd4 {[%clk 0:00:17.2]} 81...
Bg4 {[%clk 0:00:10.6]} 82. Kc5 {[%clk 0:00:17.6]} 82... Bf3 {[%clk 0:00:10.9]}
83. e6 {[%clk 0:00:14]} 83... Bg4 {[%clk 0:00:09.6]} 84. Kd4 {[%clk 0:00:14.2]}
84... Kd6 {[%clk 0:00:09.5]} 85. Ke4 {[%clk 0:00:13.7]} 85... Bh3 {[%clk
0:00:09.5]} 86. Kd4 {[%clk 0:00:14.1]} 86... Bg2 {[%clk 0:00:09.4]} 87. e7
{[%clk 0:00:14.2]} 87... Kxe7 {[%clk 0:00:09.4]} 88. Ke5 {[%clk 0:00:15.1]}
88... Bh3 {[%clk 0:00:09.5]} 89. d6+ {[%clk 0:00:15.7]} 89... Kd7 {[%clk
0:00:09.6]} 90. Kd5 {[%clk 0:00:16.6]} 90... Bg2+ {[%clk 0:00:08.9]} 91. Ke5
{[%clk 0:00:16.9]} 91... Bf1 {[%clk 0:00:09]} 92. Kf6 {[%clk 0:00:17.2]} 92...
Bd3 {[%clk 0:00:08.8]} 93. Ke5 {[%clk 0:00:18.1]} 93... Bf5 {[%clk 0:00:09]} 94.
Kd5 {[%clk 0:00:18.7]} 94... Be6+ {[%clk 0:00:09.2]} 95. Ke5 {[%clk 0:00:19.2]}
95... Bb3 {[%clk 0:00:03.6]} 96. Kf6 {[%clk 0:00:19.4]} 96... Bc2 {[%clk
0:00:04.2]} 97. Ke5 {[%clk 0:00:20.3]} 97... Bb1 {[%clk 0:00:04.4]} 98. Kd5
{[%clk 0:00:20.8]} 98... Ba2+ {[%clk 0:00:03.8]} 99. Ke5 {[%clk 0:00:21.7]}
99... Bb1 {[%clk 0:00:03.8]} 100. Kd5 {[%clk 0:00:22.1]} 100... Bf5 {[%clk
0:00:04.2]} 101. Ke5 {[%clk 0:00:23]} 101... Kc6 {[%clk 0:00:04.8]} 0-1